bitfinex/quotes_ETHUSD_20251212
["timestamp","ask_amount","ask_price","bid_price","bid_amount"]
[1765566911401,0.2727339,3071.4,3070.1,3.25720205]
[1765566911712,0.1959,3071.9,3070.6,0.05862715]
[1765566912054,0.1959,3071.9,3070.8,0.405504]
[1765566912211,0.4646,3071.8,3070.8,0.405504]
[1765566912579,0.4646,3071.8,3071.0,0.98597929]
[1765566912786,0.4646,3072.5,3071.0,0.98597929]
[1765566913001,0.9826,3072.5,3071.8,0.05862715]
[1765566913382,3.25436084,3072.8,3072.0,0.05862715]
[1765566913582,0.4646,3072.7,3072.0,0.05862715]
[1765566914713,3.25426526,3072.9,3072.2,0.05862715]
[1765566914913,0.518,3073.0,3072.4,0.05862715]
[1765566915111,3.77218131,3073.0,3072.5,0.05862715]
[1765566915719,0.4646,3072.9,3072.2,0.39586282]
[1765566915921,0.4646,3072.9,3072.4,0.05862715]
[1765566916281,0.001,3073.2,3072.6,0.05862715]
[1765566916908,0.001,3073.2,3072.6,3.31314236]
[1765566917106,0.001,3073.2,3072.6,3.65031931]
[1765566917308,0.001,3073.2,3072.8,0.05862715]
[1765566918916,0.001,3073.2,3073.0,0.05862715]
[1765566919682,0.001,3073.2,3073.1,0.405504]
[1765566919887,0.001,3073.2,3073.1,0.518]
[1765566920203,0.001,3073.2,3073.1,0.38308821]
[1765566920411,0.001,3073.2,3073.0,0.05862715]
[1765566920707,0.4761,3073.1,3072.6,0.05862715]
[1765566921022,0.001,3073.2,3073.0,0.05862715]
[1765566923401,0.001,3073.2,3073.1,3.25404314]
[1765566926592,0.001,3073.2,3073.0,0.57662715]
[1765566926792,0.001,3073.2,3073.0,3.8307707]
[1765566927091,0.001,3073.2,3072.9,0.05862715]
[1765566927304,0.001,3073.2,3073.0,3.25414624]
[1765566928731,0.001,3073.2,3073.1,0.05862715]
[1765566929827,0.001,3073.2,3073.1,3.31267029]
[1765566932231,0.001,3073.2,3072.9,0.05862715]
[1765566932403,0.4761,3073.0,3072.5,3.7726786]
[1765566932596,0.4797,3073.2,3072.6,0.58047529]
[1765566932597,0.001,3073.2,3072.6,0.58047529]
[1765566932797,0.001,3073.2,3073.1,0.98597929]
[1765566932996,0.001,3073.2,3072.6,8.63431573]
[1765566933236,0.001,3073.2,3072.8,0.405504]
[1765566934201,0.001,3073.2,3073.0,0.58047529]
[1765566934909,0.001,3073.2,3073.1,0.405504]
[1765566935213,0.001,3073.2,3073.1,0.923504]
[1765566936237,0.001,3073.2,3073.1,4.35251843]
[1765566936419,0.001,3073.2,3073.1,4.75802243]
[1765566936937,0.001,3073.2,3073.1,12.81186287]
[1765566937108,0.001,3073.5,3073.2,0.98597929]
[1765566937518,0.001,3073.5,3073.4,0.405504]
[1765566937916,0.001,3074.1,3073.6,0.98597929]
[1765566938119,0.001,3074.1,3074.0,12.344974]
[1765566938344,0.4787,3075.6,3074.1,0.98597929]
[1765566938653,0.001,3075.8,3074.6,9.03981973]
[1765566938940,0.001,3075.8,3075.4,9.03981973]
[1765566939109,0.001,3075.8,3075.4,2.40796126]
[1765566939310,0.001,3075.8,3075.4,1.50397929]
[1765566939940,0.4797,3075.8,3075.4,0.58047529]
[1765566940116,0.9558,3075.5,3075.3,3.76865687]
[1765566940442,0.4771,3075.5,3075.4,0.05206384]
[1765566940808,0.001,3075.5,3075.4,0.05206384]
[1765566941239,0.4771,3075.5,3075.4,0.05206384]
[1765566941441,4.20731265,3075.5,3074.9,0.05206384]
[1765566941644,0.4761,3075.0,3074.9,0.05206384]
[1765566942942,4.20685081,3075.0,3073.8,0.05206384]
[1765566943243,0.1908,3074.4,3074.3,0.05206384]
[1765566943413,0.1908,3074.4,3074.0,0.05206384]
[1765566943612,0.6695,3074.4,3074.1,3.25291703]
[1765566944039,0.6695,3074.4,3074.2,0.05206384]
[1765566944544,0.6695,3074.4,3074.2,3.30493094]
[1765566944908,0.6695,3074.7,3074.2,3.91383508]
[1765566945110,0.4761,3074.3,3074.0,0.05206384]
[1765566945340,0.4761,3074.3,3074.2,3.30494263]
[1765566945563,0.9548,3074.3,3074.1,3.25294797]
[1765566945716,0.9548,3074.3,3074.2,3.25287879]
[1765566945922,0.4761,3074.3,3074.1,3.2529545]
[1765566946123,0.4761,3074.3,3074.0,3.30513225]
[1765566946324,0.4761,3074.1,3073.6,0.05206384]
[1765566946659,0.4761,3073.9,3073.8,0.05206384]
[1765566946825,0.4787,3074.2,3073.8,0.05206384]
[1765566947855,0.6669,3073.9,3073.7,0.58047529]
[1765566948154,0.4761,3073.8,3073.5,3.2535969]
[1765566948348,0.4787,3073.8,3073.6,0.05206384]
[1765566948679,0.1908,3073.9,3073.6,0.05206384]
[1765566948824,0.6695,3073.9,3073.6,0.05206384]
[1765566949943,0.4787,3074.2,3073.8,0.05206384]
[1765566950261,0.4787,3074.1,3073.5,0.05206384]
[1765566950561,0.4787,3074.1,3073.7,0.05206384]
[1765566950722,0.6767,3073.8,3073.6,0.05206384]
[1765566951368,0.4856,3073.7,3073.6,0.05206384]
[1765566952163,0.6546,3073.8,3073.5,3.30565869]
[1765566953367,0.6546,3073.8,3073.7,0.05206384]
[1765566953854,0.1911,3073.8,3073.7,0.05206384]
[1765566954571,1.1402,3073.8,3073.5,0.05206384]
[1765566954878,1.1402,3073.8,3073.6,3.30557696]
[1765566955371,0.6767,3073.8,3073.6,3.30557696]
[1765566955738,0.6767,3073.8,3073.6,0.05206384]
[1765566955947,0.9491,3073.7,3073.4,0.05206384]
[1765566956151,0.4856,3073.5,3073.3,1.49]
[1765566956462,0.4856,3073.5,3073.3,3.25383104]
[1765566956656,0.1911,3073.8,3073.3,3.30589488]
[1765566956871,0.6546,3073.8,3073.3,3.30589488]
[1765566957390,0.6546,3073.8,3073.3,6.55972626]
[1765566957691,0.6546,3073.8,3073.5,0.05206384]
[1765566959675,0.6546,3073.8,3073.5,3.30567005]
[1765566959843,0.6546,3073.8,3073.3,3.30589488]
[1765566959844,0.6546,3073.8,3073.3,0.05206384]
[1765566960044,0.4635,3073.7,3073.3,0.05206384]
[1765566960649,0.4635,3073.7,3073.4,3.25371814]
[1765566961051,0.4856,3073.5,3073.3,0.05206384]
[1765566961252,0.4856,3073.4,3073.3,3.30589522]
[1765566961747,0.4635,3073.7,3073.2,3.88641066]
[1765566961948,0.4635,3073.7,3073.3,3.25380339]
[1765566963104,0.4635,3073.7,3073.4,0.05206384]
[1765566963875,0.4856,3073.5,3073.4,0.05206384]
[1765566964452,0.4856,3073.5,3073.2,3.30597136]
[1765566964851,0.9491,3073.5,3073.2,3.30597136]
[1765566965053,0.4856,3073.3,3072.4,0.05206384]
[1765566965253,0.9491,3073.2,3072.7,3.25439557]
[1765566965684,0.4635,3073.1,3072.7,3.25439557]
[1765566965980,0.1911,3073.8,3072.8,0.405504]
[1765566966276,0.4635,3073.7,3072.9,0.517]
[1765566966647,0.4635,3073.7,3072.8,0.405504]
[1765566967088,0.4635,3073.7,3072.7,1.21959636]
[1765566967760,0.4635,3073.7,3072.9,0.05206384]
[1765566967948,3.25361965,3073.5,3072.9,3.30631574]
[1765566968150,0.4856,3073.0,3072.1,0.002]
[1765566968365,0.517,3072.9,3072.1,0.002]
[1765566968702,0.4856,3072.2,3072.1,0.002]
[1765566969085,0.9491,3072.2,3072.1,0.002]
[1765566969396,0.58047529,3073.5,3072.1,0.002]
[1765566969397,0.4635,3073.0,3072.1,0.002]
[1765566969564,0.1911,3073.8,3072.5,8.45908943]
[1765566969764,0.4635,3074.3,3073.0,0.98597929]
[1765566969966,0.4635,3074.3,3073.2,0.98597929]
[1765566970192,0.4635,3074.3,3073.3,1.12661087]
[1765566970517,0.4635,3074.6,3073.5,0.405504]
[1765566970697,0.4635,3074.9,3073.7,0.405504]
[1765566971284,0.4635,3074.9,3074.5,0.05206384]
[1765566971972,0.1908,3075.0,3074.6,3.2524556]
[1765566973074,0.1908,3075.0,3074.5,3.30462522]
[1765566973273,0.6543,3075.0,3074.5,3.30462522]
[1765566973587,0.001,3075.5,3074.7,0.05206384]
[1765566973780,0.4635,3075.4,3074.8,0.405504]
[1765566973969,0.4635,3075.4,3074.8,3.65766553]
[1765566974603,0.4635,3075.4,3075.0,0.05528276]
[1765566976779,0.4635,3075.4,3075.0,3.30729964]
[1765566977290,0.001,3075.5,3075.0,6.55933216]
[1765566977488,0.001,3075.5,3075.4,0.05528276]
[1765566978000,0.001,3075.5,3075.2,0.05528276]
[1765566978175,0.001,3075.5,3075.4,0.05528276]
[1765566979093,0.001,3075.5,3075.4,3.3068923]
[1765566979306,0.001,3075.5,3075.4,4.37379564]
[1765566979473,0.001,3075.5,3075.4,13.00785636]
[1765566980100,0.001,3075.5,3075.4,4.89898817]
[1765566980292,0.4829,3075.5,3075.3,0.63575805]
[1765566980490,0.4811,3075.3,3073.5,8.29464927]
[1765566980804,0.4811,3075.1,3074.5,3.252483]
[1765566981099,0.4811,3075.1,3074.1,3.25289309]
[1765566981289,0.4872,3075.0,3074.1,3.25289309]
[1765566981490,0.4872,3075.0,3073.9,0.05206384]
[1765566981491,0.1917,3074.9,3073.9,0.05206384]
[1765566981693,0.1917,3074.9,3074.0,3.25306086]
[1765566981874,0.4872,3074.8,3074.0,3.25306086]
[1765566982197,0.4811,3074.1,3073.9,3.30838239]
[1765566982384,0.4811,3074.1,3073.9,3.96976757]
[1765566982574,0.4811,3074.1,3073.9,0.71666794]
[1765566982897,0.4872,3074.4,3073.9,3.30846316]
[1765566983098,0.4872,3074.3,3073.9,0.05528276]
[1765566984885,0.4872,3074.3,3073.9,3.30847388]
[1765566985476,0.4872,3074.3,3073.9,0.05528276]
[1765566986495,0.4811,3074.0,3073.2,0.05206384]
[1765566986814,0.4811,3073.9,3073.4,3.30895393]
[1765566987166,0.6728,3073.9,3073.4,3.97044721]
[1765566987315,1.16,3073.9,3073.4,3.97044721]
[1765566987502,0.517,3074.2,3073.6,0.05528276]
[1765566989008,0.517,3074.2,3073.8,0.05528276]
[1765566989381,0.517,3074.2,3074.0,0.05528276]
[1765566989705,3.73993297,3074.4,3073.9,0.05528276]
[1765566989905,3.25273297,3074.4,3073.8,0.05528276]
[1765566990108,0.4872,3074.3,3073.8,0.05528276]
[1765566991087,0.4872,3074.3,3073.8,3.30855193]
[1765566992286,0.4872,3074.3,3073.8,0.05528276]
[1765566992620,3.73997716,3074.3,3073.8,0.05528276]
[1765566992786,4.43923427,3074.3,3073.6,0.05519106]
[1765566992986,3.73997716,3074.3,3073.8,0.05528276]
[1765566993586,0.4872,3074.3,3073.8,0.05528276]
[1765566994418,3.74001142,3074.3,3073.8,0.05528276]
[1765566994645,0.6728,3073.9,3073.7,1.49]
[1765566994912,0.6728,3073.9,3073.2,0.63253913]
[1765566994913,0.4811,3073.8,3073.2,0.05206384]
[1765566995121,0.4811,3073.5,3073.4,0.05855468]
[1765566995419,0.4872,3073.8,3073.4,0.05855468]
[1765566995619,0.4872,3073.8,3073.4,3.31223329]
[1765566996386,0.4872,3073.8,3073.4,0.05855468]
[1765566996826,0.4872,3073.8,3072.7,0.05855468]
[1765566996827,0.4811,3073.5,3072.7,0.05855468]
[1765566996990,0.4811,3073.4,3072.9,0.05855468]
[1765566997390,0.4811,3073.4,3072.9,3.31279954]
[1765566997391,0.4872,3073.3,3072.9,3.31279954]
[1765566998421,3.25351991,3073.6,3072.9,3.31279954]
[1765566998623,3.74071991,3073.6,3072.9,3.31279954]
[1765566998923,0.4872,3073.6,3072.9,7.22313307]
[1765566999313,3.74074377,3073.6,3072.9,3.96887814]
[1765566999715,0.4872,3073.6,3073.1,0.05206469]
[1765567000698,3.74072984,3073.6,3073.1,0.05206469]
[1765567001101,0.4872,3073.5,3073.1,0.05206469]
[1765567002035,0.4872,3073.5,3073.1,3.30607146]
[1765567002199,0.4872,3073.5,3073.1,4.03356642]
[1765567002939,0.517,3073.8,3073.3,0.05206469]
[1765567003234,0.4872,3074.1,3073.2,0.56906469]
[1765567003235,0.4872,3073.7,3073.2,0.56906469]
[1765567003421,0.4872,3073.7,3073.2,0.517]
[1765567003600,0.4872,3073.7,3073.2,1.02490743]
[1765567003805,0.4872,3073.7,3073.3,3.25383138]
[1765567005234,0.4872,3073.7,3073.4,0.05206469]
[1765567005409,0.1917,3074.2,3073.6,0.05206469]
[1765567005612,0.517,3074.4,3073.7,0.05206469]
[1765567005813,3.76968422,3074.4,3073.9,0.05206469]
[1765567006341,0.4872,3074.3,3073.9,0.05206469]
[1765567006739,0.517,3074.4,3073.9,3.96633013]
[1765567007042,0.1917,3074.9,3074.3,0.05206469]
[1765567007607,3.44384933,3074.9,3074.3,0.05206469]
[1765567008138,1.0042,3074.8,3074.1,0.05206469]
[1765567008526,1.0042,3074.8,3074.3,3.30482669]
[1765567009669,4.25644954,3074.8,3074.3,0.05206469]
[1765567009836,1.0042,3074.8,3074.3,0.05206469]
[1765567010029,4.25645098,3074.8,3074.3,0.05206469]
[1765567010903,0.4595,3074.4,3073.8,0.05206469]
[1765567011141,0.4595,3074.2,3074.0,0.04554178]
[1765567011839,3.73197965,3074.6,3074.0,0.04554178]
[1765567012042,3.73197965,3074.6,3074.0,3.29861773]
[1765567012741,3.73197965,3074.6,3074.0,0.04554178]
[1765567013720,3.73197965,3074.6,3073.8,0.05206469]
[1765567013721,0.4595,3074.1,3073.8,0.05206469]
[1765567014042,3.25266718,3074.4,3073.8,0.04554178]
[1765567014043,0.4595,3074.0,3073.8,0.04554178]
[1765567014212,0.4795,3074.3,3073.8,3.29877352]
[1765567014414,0.4795,3074.6,3074.0,0.04554178]
[1765567014836,6.50469964,3074.7,3074.0,0.04554178]
[1765567015042,0.4795,3074.5,3073.8,0.04554178]
[1765567015344,0.4795,3074.5,3073.9,3.25319298]
[1765567015935,0.4595,3074.0,3073.8,0.04554178]
[1765567016139,3.25266718,3074.4,3073.8,3.29883526]
[1765567016327,3.73216718,3074.4,3073.8,3.29883526]
[1765567016751,0.4795,3074.4,3074.0,0.04554178]
[1765567017629,3.25261917,3074.5,3074.0,0.04554178]
[1765567017849,4.50271199,3074.5,3074.0,0.04554178]
[1765567019750,3.25250361,3074.6,3074.0,3.2986234]
[1765567020048,3.25250361,3074.6,3073.9,3.25313518]
[1765567020049,0.4795,3074.6,3073.9,3.25313518]
[1765567020228,0.4795,3074.5,3074.0,0.04554178]
[1765567020429,3.73207056,3074.5,3074.0,0.04554178]
[1765567020762,0.1917,3074.9,3074.2,0.04554178]
[1765567021044,0.1917,3074.9,3074.0,7.02313064]
[1765567021045,0.4795,3074.9,3074.0,7.02313064]
[1765567021214,0.4795,3074.9,3074.0,3.77004021]
[1765567021409,0.4795,3074.9,3073.6,1.895504]
[1765567021611,0.001,3075.5,3074.4,0.405504]
[1765567021841,0.001,3075.5,3074.4,0.922504]
[1765567022442,0.001,3075.5,3074.6,0.98597929]
[1765567023523,0.4805,3075.5,3074.9,0.04554178]
[1765567024616,3.73203953,3075.5,3074.9,0.04554178]
[1765567024817,6.98357906,3075.5,3074.6,0.04554178]
[1765567025148,0.4795,3075.4,3074.7,3.25227406]
[1765567025334,6.50407906,3075.5,3074.9,3.25213744]
[1765567025335,0.001,3075.5,3074.9,3.25213744]
[1765567025818,0.001,3075.5,3075.0,0.04554178]
[1765567026228,0.4595,3075.1,3073.7,0.1895504]
[1765567026458,0.4595,3073.8,3072.7,0.002]
[1765567026643,0.6396,3073.8,3072.7,0.519]
[1765567026851,0.6396,3073.8,3072.8,0.517]
[1765567027753,0.6396,3073.8,3072.9,0.405504]
[1765567028143,0.6396,3073.8,3072.8,0.517]
[1765567028865,0.6396,3073.8,3073.1,0.405504]
[1765567029049,0.4795,3073.7,3073.2,0.04554178]
[1765567029252,0.4795,3073.7,3073.0,0.04554178]
[1765567030132,0.4795,3073.7,3073.2,0.04554178]
[1765567030958,0.4795,3073.7,3073.0,6.55380039]
[1765567031171,0.4795,3073.7,3073.2,0.04554178]
[1765567031334,3.73293014,3073.7,3073.2,0.04554178]
[1765567031732,0.4795,3073.6,3073.0,0.04554178]
[1765567032226,0.4795,3073.6,3072.8,0.04554178]
[1765567032227,0.4795,3073.6,3072.8,0.62601707]
[1765567032430,0.517,3073.5,3072.8,0.04554178]
[1765567032658,0.517,3073.5,3072.8,0.62601707]
[1765567032864,0.6396,3072.9,3072.7,0.002]
[1765567033033,3.71386084,3072.8,3072.7,0.002]
[1765567033372,1.70551268,3072.8,3071.8,0.519]
[1765567033540,0.1801,3072.9,3072.3,3.30040071]
[1765567033740,0.517,3073.0,3072.5,0.04554178]
[1765567034333,0.9965,3073.0,3072.5,0.04554178]
[1765567035468,0.517,3073.0,3072.5,0.04554178]
[1765567035639,0.517,3073.0,3072.5,3.30020919]
[1765567035837,0.9965,3073.0,3072.5,0.04554178]
[1765567036059,0.9965,3073.0,3072.5,3.30019519]
[1765567036264,4.25067829,3073.0,3072.5,0.04554178]
[1765567036471,0.9965,3073.0,3072.5,3.30018279]
[1765567036669,4.25065312,3073.0,3072.5,0.04554178]
[1765567037280,0.9965,3073.0,3072.5,0.04554178]
[1765567037487,0.4595,3072.6,3072.1,0.002]
[1765567037633,0.4795,3072.9,3072.1,0.002]
[1765567037634,0.4595,3072.2,3072.1,0.002]
[1765567038066,0.517,3072.5,3072.1,0.002]
[1765567038067,0.9965,3072.5,3072.1,0.002]
[1765567038270,0.4538,3072.2,3072.1,0.002]
[1765567038466,0.4538,3072.2,3071.9,3.2553108]
[1765567038655,0.517,3072.5,3072.0,0.04554178]
[1765567038862,0.517,3072.5,3072.0,3.3007368]
[1765567039065,0.517,3072.5,3072.0,0.04554178]
[1765567039260,0.9702,3072.5,3072.0,0.04554178]
[1765567039442,0.9702,3072.5,3072.0,3.30073267]
[1765567039643,3.77169039,3072.5,3072.0,0.04554178]
[1765567039837,0.517,3072.5,3072.0,0.04554178]
[1765567040063,3.77168356,3072.5,3072.0,0.04554178]
[1765567040266,4.24148356,3072.5,3072.0,0.04554178]
[1765567040436,0.9868,3072.5,3072.0,0.04554178]
[1765567040639,4.24149338,3072.5,3071.9,3.25525748]
[1765567040835,4.24149338,3072.5,3071.9,3.20962188]
[1765567041074,0.9868,3072.5,3072.0,3.25519566]
[1765567041441,0.517,3072.5,3072.0,0.04554178]
[1765567041668,0.517,3072.5,3072.1,0.04554178]
[1765567042177,0.517,3072.5,3072.0,3.16818972]
[1765567042358,0.517,3072.5,3072.0,0.04554178]
[1765567042558,0.517,3072.5,3072.0,3.25519566]
[1765567042746,0.517,3072.5,3072.0,3.16401353]
[1765567042941,0.517,3072.5,3072.0,0.04882336]
[1765567043150,0.517,3072.5,3072.0,3.25519566]
[1765567043353,0.4698,3072.4,3072.0,0.05208079]
[1765567043564,3.7246076,3072.4,3071.8,3.22202157]
[1765567043882,3.7246076,3072.4,3071.6,3.25762131]
[1765567043883,3.4334497,3073.8,3072.3,0.405504]
[1765567044065,3.72302466,3073.9,3072.5,0.405504]
[1765567044268,0.4698,3073.9,3072.7,8.42770193]
[1765567044459,0.4698,3074.3,3072.8,0.84277019]
[1765567044658,0.9878,3074.3,3072.9,0.518]
[1765567044993,0.518,3074.3,3073.8,0.05531963]
[1765567045164,3.770456,3074.6,3073.8,0.05531963]
[1765567045363,4.240256,3074.6,3073.8,0.05531963]
[1765567045569,7.25450931,3074.5,3073.8,0.05531963]
[1765567045779,7.72430931,3074.5,3073.8,0.05531963]
[1765567045953,4.47168501,3074.5,3073.8,0.05531963]
[1765567046281,4.47165412,3074.5,3073.8,3.30859986]
[1765567047083,0.74926071,3074.5,3073.9,0.0618057]
[1765567047294,0.1801,3075.0,3074.0,0.0715645]
[1765567047295,3.72204648,3074.8,3074.0,0.0715645]
[1765567047454,3.77034982,3074.7,3074.0,0.0715645]
[1765567047658,3.77034982,3074.7,3074.0,0.01432419]
[1765567047860,3.77034982,3074.7,3074.0,3.32465134]
[1765567048091,0.74923983,3074.6,3074.1,0.07806528]
[1765567048791,0.74923983,3074.6,3074.1,0.02082498]
[1765567049091,0.518,3074.7,3074.3,0.07806528]
[1765567049292,0.1964,3075.2,3074.3,0.07806528]
[1765567049494,0.1964,3075.2,3074.6,0.07806528]
[1765567049701,0.1964,3075.2,3074.6,3.27322609]
[1765567049858,3.44823027,3075.2,3074.5,0.07802918]
[1765567050058,0.39652303,3075.1,3074.6,0.07806528]
[1765567050483,3.44822132,3075.2,3074.6,3.33050329]
[1765567050791,0.4698,3075.1,3074.6,0.07806528]
[1765567050998,3.44822521,3075.2,3074.7,0.08455697]
[1765567051200,3.25175582,3075.3,3074.6,3.2524273]
[1765567051389,3.25175582,3075.3,3074.7,0.08455697]
[1765567051589,0.37687558,3075.2,3074.8,3.25224404]
[1765567051790,0.517,3075.4,3074.9,0.08455697]
[1765567051988,3.76862715,3075.4,3074.9,0.08455697]
[1765567052188,0.517,3075.4,3075.0,0.09105247]
[1765567052402,0.001,3075.5,3075.1,8.4569143]
[1765567052600,0.001,3075.5,3075.3,0.405504]
[1765567053682,0.001,3075.5,3075.4,4.26516601]
[1765567054084,0.001,3075.5,3075.4,4.8456413]
[1765567054602,0.001,3075.5,3075.4,1.07703176]
[1765567054778,0.4691,3075.5,3075.2,0.09105247]
[1765567054979,0.9379,3075.4,3075.2,0.09105247]
[1765567055191,0.4681,3075.4,3075.2,0.09105247]
[1765567055378,0.001,3075.5,3075.2,0.09105247]
[1765567055788,0.4681,3075.3,3074.9,0.0975467]
[1765567056086,0.4708,3075.5,3075.0,3.2520072]
[1765567056292,0.4708,3075.5,3075.1,0.0975467]
[1765567058299,3.72233004,3075.5,3075.1,0.0975467]
[1765567058515,0.4708,3075.5,3075.1,0.0975467]
[1765567059228,0.84302406,3075.5,3075.1,0.0975467]
[1765567059396,0.84302406,3075.5,3075.1,3.34946438]
[1765567059594,0.4708,3075.5,3075.1,3.34946438]
[1765567059798,0.001,3075.5,3075.3,0.0975467]
[1765567060036,0.001,3075.5,3075.1,3.34946438]
[1765567060324,0.001,3075.5,3075.4,0.0975467]
[1765567061636,0.001,3075.5,3075.4,0.04030639]
[1765567061840,0.001,3075.5,3075.4,3.86615624]
[1765567062122,0.001,3075.5,3075.4,0.517]
[1765567062290,0.001,3075.5,3075.4,3.14266607]
[1765567062617,0.001,3075.5,3075.4,3.25160954]
[1765567062818,0.001,3075.5,3075.3,0.0975467]
[1765567063025,0.001,3075.5,3075.4,3.25160954]
[1765567063393,0.001,3075.5,3075.4,4.64237476]
[1765567063590,0.001,3075.5,3075.4,4.47953399]
[1765567063815,0.001,3075.5,3075.4,12.69378506]
[1765567064192,0.001,3075.5,3075.4,4.64237476]
[1765567064391,0.001,3075.5,3075.4,2.80437714]
[1765567064592,0.001,3075.5,3075.4,2.46252685]
[1765567065115,0.001,3075.5,3075.3,0.6155467]
[1765567065309,0.001,3075.5,3075.4,3.04511937]
[1765567065833,0.001,3075.5,3075.4,3.62559466]
[1765567066120,0.001,3075.5,3075.4,11.91601122]
[1765567066313,0.001,3075.5,3075.4,11.88349513]
[1765567066508,0.001,3075.5,3075.4,12.28899913]
[1765567066722,0.001,3075.5,3075.4,14.30196283]
[1765567067123,0.001,3075.5,3075.4,13.28207077]
[1765567067706,0.001,3075.5,3075.4,13.7085983]
[1765567068036,0.001,3075.5,3075.4,10.45698876]
[1765567068237,0.001,3075.5,3075.4,13.7085983]
[1765567069025,0.001,3075.5,3075.4,12.86080673]
[1765567069493,0.001,3075.5,3075.4,20.82915873]
[1765567069757,0.001,3075.8,3075.6,0.58047529]
[1765567069917,0.001,3075.8,3075.7,4.44631437]
[1765567070113,0.001,3075.8,3075.7,4.34876767]
[1765567070314,0.001,3075.8,3075.7,3.6252775]
[1765567070512,0.001,3075.8,3075.7,3.76829238]
[1765567070717,0.001,3075.8,3075.7,0.517]
[1765567070919,0.001,3075.8,3075.7,3.76829238]
[1765567071226,0.001,3075.8,3075.7,0.405504]
[1765567071427,0.001,3075.8,3075.7,3.34883908]
[1765567071608,0.001,3075.8,3075.7,3.03979701]
[1765567071925,0.001,3075.8,3075.7,3.81653465]
[1765567072137,0.001,3075.8,3075.7,3.25129238]
[1765567072312,0.001,3075.8,3075.7,3.34883908]
[1765567072495,0.001,3075.8,3075.7,4.30438899]
[1765567072931,0.001,3076.1,3075.8,0.58047529]
[1765567073097,0.001,3076.1,3076.0,7.19418185]
[1765567073297,0.001,3076.3,3076.0,7.59968585]
[1765567073536,0.001,3076.3,3076.1,1.50297929]
[1765567073737,0.001,3076.3,3076.2,1.12715714]
[1765567074040,0.001,3076.3,3076.1,1.09747529]
[1765567074343,0.001,3076.3,3076.0,9.86457827]
[1765567074344,0.001,3076.3,3076.2,3.86531062]
[1765567074641,0.001,3076.3,3076.2,11.56198115]
[1765567074843,0.001,3076.3,3076.2,12.78766437]
[1765567075038,0.001,3076.3,3076.2,9.45228681]
[1765567075206,0.001,3076.3,3076.2,10.50063844]
[1765567075402,0.001,3076.3,3076.2,9.13530061]
[1765567075602,0.001,3076.3,3076.2,7.90961739]
[1765567076037,0.001,3076.3,3076.1,0.405504]
[1765567076203,0.001,3076.3,3076.2,0.0975467]
[1765567076530,0.001,3076.3,3076.2,8.71654305]
[1765567077031,0.001,3076.3,3076.2,0.0975467]
[1765567077346,0.001,3076.3,3076.2,8.04544648]
[1765567077708,0.001,3076.6,3076.2,19.93674148]
[1765567077908,0.001,3076.6,3076.3,0.517]
[1765567078108,0.001,3076.6,3076.4,3.25055259]
[1765567078429,0.001,3076.6,3076.5,0.405504]
[1765567079128,0.001,3076.6,3076.5,0.58047529]
[1765567079327,0.474,3076.6,3076.5,0.0975467]
[1765567079530,0.9576,3076.6,3076.5,0.0975467]
[1765567079732,0.9576,3076.6,3076.3,3.34820495]
[1765567079936,0.9576,3076.6,3076.5,0.0975467]
[1765567080136,0.474,3076.6,3076.5,0.0975467]
[1765567080314,0.474,3076.6,3076.4,0.0975467]
[1765567080521,0.9576,3076.6,3076.5,0.0975467]
[1765567080718,0.9576,3076.6,3076.3,0.0975467]
[1765567080719,3.73495655,3076.6,3076.0,0.0975467]
[1765567081057,0.69861932,3076.5,3076.1,0.0975467]
[1765567081342,0.4836,3076.2,3075.5,4.01536783]
[1765567081547,0.4836,3076.2,3075.5,3.72291754]
[1765567081773,0.4836,3076.2,3073.3,2.5392836]
[1765567081774,0.6669,3075.6,3073.4,1.71297344]
[1765567081922,0.1939,3074.9,3074.3,3.25277298]
[1765567082119,0.473,3074.4,3073.6,6.50702758]
[1765567082434,0.473,3074.2,3073.9,0.0975467]
[1765567082625,0.473,3074.2,3073.7,0.09749311]
[1765567082814,0.473,3074.2,3073.4,0.002]
[1765567083016,0.6775,3074.9,3073.8,0.79480272]
[1765567083346,3.92964109,3074.9,3073.8,8.03852106]
[1765567083561,0.4836,3074.8,3073.6,6.50702758]
[1765567083731,0.4836,3074.8,3073.6,3.25351379]
[1765567083935,0.1939,3074.9,3074.5,0.0975467]
[1765567084144,1.957,3076.8,3074.8,8.03852106]
[1765567084145,0.1939,3075.9,3074.8,8.03852106]
[1765567084320,0.1939,3075.9,3074.9,0.22747588]
[1765567084645,0.6775,3075.9,3074.8,7.79899057]
[1765567084845,0.6775,3075.9,3074.8,8.03852106]
[1765567085053,0.6775,3075.9,3075.8,0.0975467]
[1765567085423,1.1505,3075.9,3074.8,5.38851319]
[1765567085748,1.1505,3075.9,3074.8,5.29096649]
[1765567085949,0.4836,3075.8,3075.4,0.0975467]
[1765567086163,0.473,3075.5,3074.6,6.36420876]
[1765567086316,0.473,3075.3,3074.7,0.08070405]
[1765567086522,0.473,3075.3,3074.6,6.41628326]
[1765567086738,0.473,3075.3,3074.6,5.71168922]
[1765567087318,0.473,3075.3,3074.7,0.58047529]
[1765567087650,0.518,3075.6,3074.8,7.94980832]
[1765567087823,0.518,3075.6,3075.5,0.0975467]
[1765567088023,0.4836,3075.5,3075.4,0.0975467]
[1765567088448,0.9566,3075.5,3075.4,0.0975467]
[1765567088652,0.9566,3075.5,3075.4,0.00835341]
[1765567088818,0.9566,3075.5,3075.4,0.0975467]
[1765567089021,0.9566,3075.5,3075.2,2.75361832]
[1765567089220,0.9566,3075.5,3075.4,0.0975467]
[1765567089451,0.9566,3075.5,3075.3,0.0975467]
[1765567089752,0.518,3075.6,3075.4,0.0975467]
[1765567090157,0.473,3075.5,3075.2,0.0975467]
[1765567090326,0.4836,3075.5,3075.1,0.0975467]
[1765567090519,0.473,3075.2,3075.1,0.01706584]
[1765567090718,0.4836,3075.5,3075.0,0.0975467]
[1765567090956,0.4836,3075.4,3075.2,0.0975467]